[Event "EYCC Girls U16 2021"]
[Site "Tornelo"]
[Date "2021.10.15"]
[Round "2.3"]
[White "Jovanovic, Anja"]
[Black "Pipiras, Filipa Fortuna"]
[Result "1/2-1/2"]
[ECO "B22"]
[WhiteElo "1781"]
[BlackElo "1995"]
[Annotator "NA"]
[PlyCount "123"]
[EventDate "2021.10.15"]
[EventType "swiss"]
[EventCountry "NET"]
[SourceTitle "playchess.com"]
[Source "ChessBase"]
[SourceQuality "1"]
[TimeControl "5400+30"]

1. e4 {[%emt 0:00:30]} c5 {[%emt 0:01:06]} 2. c3 {[%emt 0:00:10]} Nf6 {[%emt 0:00:30]} 3. e5 {[%emt 0:00:11]} Nd5 {[%emt 0:00:11]} 4. d4 {[%emt 0:00:07]} cxd4 {[%emt 0:00:51]} 5. Nf3 {[%emt 0:00:29]} d6 {[%emt 0:01:23]} 6. cxd4 {[%emt 0:02:10]} Nc6 {[%emt 0:01:51]} 7. Bc4 {[%emt 0:01:42]} Nb6 {[%emt 0:00:23]} 8. Bb5 {[%emt 0:01:35]} a6 {[%emt 0:04:02]} 9. Bxc6+ {[%emt 0:01:11]} bxc6 {[%emt 0:00:06]} 10. O-O {[%emt 0:02:19]} Bg4 {[%emt 0:10:03]} 11. Qd3 {[%emt 0:11:25]} e6 {[%emt 0:09:01]} 12. Qe4 {[%emt 0:06:03]} Bxf3 {[%emt 0:02:54]} 13. Qxf3 {[%emt 0:00:21]} d5 {[%emt 0:01:49]} 14. Qg4 {[%emt 0:08:00]} c5 {[%emt 0:10:46]} 15. Bg5 {[%emt 0:08:57]} Qb8 {[%emt 0:06:51]} 16. Nd2 {[%emt 0:10:54]} cxd4 {[%emt 0:05:50]} 17. Qxd4 {[%emt 0:01:27]} Nd7 {[%emt 0:00:48]} 18. Nf3 {[%emt 0:03:02]} Bc5 {[%emt 0:02:04]} 19. Qc3 {[%emt 0:11:59]} O-O {[%emt 0:02:24]} 20. Bf4 {[%emt 0:04:45]} Rc8 {[%emt 0:09:08]} 21. Qd3 {[%emt 0:05:50]} Qxb2 {[%emt 0:03:51]} 22. Ng5 {[%emt 0:01:32]} g6 {[%emt 0:00:25]} 23. Qh3 {[%emt 0:01:35]} Nf8 {[%emt 0:01:14]} 24. Qh4 {[%emt 0:03:28]} Rab8 {[%emt 0:05:57]} 25. h3 {[%emt 0:06:07]} Be7 {[%emt 0:04:40]} 26. Qg3 {[%emt 0:01:43]} Qa3 {[%emt 0:00:48]} 27. Nf3 {[%emt 0:00:54]} Rc2 {[%emt 0:01:51]} 28. Rab1 {[%emt 0:01:10]} Rxb1 {[%emt 0:02:13]} 29. Rxb1 {[%emt 0:00:03]} Bc5 {[%emt 0:00:29]} 30. Rf1 {[%emt 0:00:38]} Rxa2 {[%emt 0:02:10]} 31. Bh6 {[%emt 0:00:50]} Nd7 {[%emt 0:03:48]} 32. Qh4 {[%emt 0:01:20]} Be7 {[%emt 0:00:29]} 33. Qf4 {[%emt 0:00:32]} Qb4 {[%emt 0:01:01]} 34. Qe3 {[%emt 0:01:19]} Qb6 {[%emt 0:03:43]} 35. Qf4 {[%emt 0:00:16]} Qb4 {[%emt 0:01:41]} 36. Qe3 {[%emt 0:00:04]} Bc5 {[%emt 0:00:57]} 37. Qg5 {[%emt 0:00:12]} Qb8 {[%emt 0:00:22]} 38. Qf4 {[%emt 0:01:26]} Rb2 {[%emt 0:00:26]} 39. Ng5 {[%emt 0:00:54]} Qe8 {[%emt 0:00:53]} 40. Qh4 {[%emt 0:01:14]} Rb4 {[%emt 0:00:42]} 41. Qg3 {[%emt 0:00:19]} a5 {[%emt 0:00:24]} 42. Rc1 {[%emt 0:00:08]} Rb2 {[%emt 0:00:18]} 43. Kh1 {[%emt 0:00:56]} a4 {[%emt 0:00:33]} 44. Qf4 {[%emt 0:01:07]} Rb4 {[%emt 0:00:45]} 45. Qg3 {[%emt 0:00:49]} a3 {[%emt 0:00:46]} 46. Qxa3 {[%emt 0:00:37]} Rb1 {[%emt 0:00:10]} 47. Qc3 {[%emt 0:00:06]} Rxc1+ {[%emt 0:00:11]} 48. Qxc1 {[%emt 0:00:02]} Bxf2 {[%emt 0:00:12]} 49. Qf4 {[%emt 0:00:04]} Bc5 {[%emt 0:00:19]} 50. Qa4 {[%emt 0:00:40]} Qd8 {[%emt 0:01:05]} 51. Qf4 {[%emt 0:00:19]} Qe7 {[%emt 0:00:22]} 52. Qa4 {[%emt 0:00:35]} f6 {[%emt 0:01:06]} 53. exf6 {[%emt 0:01:15]} Nxf6 {[%emt 0:00:15]} 54. Qa8+ {[%emt 0:00:12]} Qe8 {[%emt 0:00:46]} 55. Qb7 {[%emt 0:00:27]} Nd7 {[%emt 0:00:28]} 56. Qc6 {[%emt 0:00:13]} Be3 {[%emt 0:00:14]} 57. Qc3 {[%emt 0:01:33]} d4 {[%emt 0:00:11]} 58. Qc4 {[%emt 0:00:43]} Ne5 {[%emt 0:00:32]} 59. Qc7 {[%emt 0:00:22]} Nd7 {[%emt 0:00:17]} 60. Qc4 {[%emt 0:00:09]} Ne5 {[%emt 0:01:10]} 61. Qc7 {[%emt 0:00:05]} Nd7 {[%emt 0:00:37]} 62. Qc4 {[%emt 0:00:02]} 1/2-1/2

[Event "EYCC Girls U16 2021"]
[Site "Tornelo"]
[Date "2021.10.15"]
[Round "2.4"]
[White "Batagan, Ilinca-Petra"]
[Black "Shpakivskaya, Alina"]
[Result "0-1"]
[ECO "E06"]
[WhiteElo "1977"]
[BlackElo "1875"]
[Annotator "NA"]
[PlyCount "66"]
[EventDate "2021.10.15"]
[EventType "swiss"]
[EventCountry "NET"]
[SourceTitle "playchess.com"]
[Source "ChessBase"]
[SourceQuality "1"]
[TimeControl "5400+30"]

1. d4 {[%emt 0:00:30]} Nf6 {[%emt 0:00:41]} 2. Nf3 {[%emt 0:00:12]} e6 {[%emt 0:00:10]} 3. c4 {[%emt 0:00:58]} d5 {[%emt 0:00:29]} 4. g3 {[%emt 0:00:46]} Be7 {[%emt 0:00:09]} 5. Bg2 {[%emt 0:00:20]} O-O {[%emt 0:00:11]} 6. cxd5 {[%emt 0:00:24]} exd5 {[%emt 0:00:49]} 7. O-O {[%emt 0:00:23]} c6 {[%emt 0:02:18]} 8. Nc3 {[%emt 0:00:45]} Bf5 {[%emt 0:02:58]} 9. b3 {[%emt 0:01:22]} Ne4 {[%emt 0:04:17]} 10. Bb2 {[%emt 0:00:31]} Na6 {[%emt 0:01:59]} 11. Nd2 {[%emt 0:01:37]} Ng5 {[%emt 0:01:54]} 12. e4 {[%emt 0:02:33]} Bh3 {[%emt 0:03:55]} 13. Re1 {[%emt 0:07:16]} Nb4 {[%emt 0:08:15]} 14. Nf1 {[%emt 0:09:00]} Bxg2 {[%emt 0:03:45]} 15. Kxg2 {[%emt 0:00:21]} dxe4 {[%emt 0:07:39]} 16. Nxe4 {[%emt 0:00:29]} Nd5 {[%emt 0:01:06]} 17. h4 {[%emt 0:08:15]} Ne6 {[%emt 0:01:41]} 18. Ne3 {[%emt 0:02:20]} Bb4 {[%emt 0:05:33]} 19. Rh1 {[%emt 0:04:08]} f5 {[%emt 0:01:43]} 20. Nd2 {[%emt 0:03:12]} f4 {[%emt 0:03:25]} 21. Nxd5 {[%emt 0:03:35]} Qxd5+ {[%emt 0:01:55]} 22. Nf3 {[%emt 0:01:44]} fxg3 $19 {[%emt 0:03:33]} 23. fxg3 {[%emt 0:00:11]} g5 {[%emt 0:01:02]} 24. hxg5 {[%emt 0:06:19]} Nxg5 {[%emt 0:01:30]} 25. Rf1 {[%emt 0:01:05]} Rxf3 {[%emt 0:01:03]} 26. Rxf3 {[%emt 0:00:48]} Rf8 {[%emt 0:00:28]} 27. Bc1 {[%emt 0:01:10]} Nxf3 {[%emt 0:00:49]} 28. Bf4 {[%emt 0:00:12]} Ne1+ {[%emt 0:03:46]} 29. Kh3 {[%emt 0:00:32]} Qh1+ {[%emt 0:01:41]} 30. Kg4 {[%emt 0:01:03]} h5+ {[%emt 0:00:04]} 31. Kg5 {[%emt 0:00:15]} Be7+ {[%emt 0:00:04]} 32. Kg6 {[%emt 0:00:33]} Rf6+ {[%emt 0:00:04]} 33. Kg5 {[%emt 0:00:03]} Re6+ {[%emt 0:00:13]} 0-1

[Event "EYCC Girls U16 2021"]
[Site "Tornelo"]
[Date "2021.10.15"]
[Round "2.5"]
[White "Hertlein, Irena"]
[Black "Dietz, Kristin"]
[Result "1-0"]
[ECO "B41"]
[WhiteElo "1741"]
[BlackElo "1924"]
[Annotator "NA"]
[PlyCount "67"]
[EventDate "2021.10.15"]
[EventType "swiss"]
[EventCountry "NET"]
[SourceTitle "playchess.com"]
[Source "ChessBase"]
[SourceQuality "1"]
[TimeControl "5400+30"]

1. e4 {[%emt 0:00:30]} c5 {[%emt 0:00:40]} 2. Nf3 {[%emt 0:00:17]} e6 {[%emt 0:00:10]} 3. d4 {[%emt 0:00:03]} cxd4 {[%emt 0:00:08]} 4. Nxd4 {[%emt 0:00:04]} a6 {[%emt 0:00:07]} 5. c4 {[%emt 0:00:04]} Qc7 {[%emt 0:00:48]} 6. Nc3 {[%emt 0:00:55]} Nf6 {[%emt 0:00:21]} 7. Be2 {[%emt 0:00:07]} b6 {[%emt 0:02:53]} 8. O-O {[%emt 0:01:18]} Bb7 {[%emt 0:00:22]} 9. Qd3 {[%emt 0:01:35]} Bb4 {[%emt 0:04:39]} 10. f3 {[%emt 0:08:35]} O-O {[%emt 0:04:57]} 11. Bg5 {[%emt 0:02:57]} Be7 {[%emt 0:04:07]} 12. f4 {[%emt 0:06:34]} d6 {[%emt 0:16:25]} 13. f5 {[%emt 0:07:05]} e5 {[%emt 0:03:35]} 14. Nb3 {[%emt 0:01:52]} Nbd7 {[%emt 0:01:27]} 15. Bxf6 {[%emt 0:08:41]} Nxf6 {[%emt 0:01:27]} 16. h4 {[%emt 0:08:30]} b5 {[%emt 0:06:12]} 17. Nd2 {[%emt 0:08:52]} bxc4 {[%emt 0:02:29]} 18. Nxc4 {[%emt 0:00:49]} Qc5+ {[%emt 0:08:03]} 19. Kh1 {[%emt 0:10:21]} d5 {[%emt 0:01:57]} 20. exd5 {[%emt 0:00:12]} Nxd5 {[%emt 0:00:13]} 21. Nxd5 {[%emt 0:00:08]} Bxd5 {[%emt 0:00:09]} 22. Ne3 {[%emt 0:02:28]} Bb7 {[%emt 0:02:39]} 23. Ng4 {[%emt 0:06:26]} Bxh4 {[%emt 0:04:14]} 24. f6 {[%emt 0:02:17]} Qc6 {[%emt 0:14:02]} 25. Qh3 {[%emt 0:00:58]} gxf6 {[%emt 0:00:48]} 26. Bf3 {[%emt 0:14:48]} e4 {[%emt 0:02:49]} 27. Qxh4 {[%emt 0:00:27]} exf3 {[%emt 0:01:17]} 28. Rxf3 {[%emt 0:03:02]} f5 {[%emt 0:02:55]} 29. Nf6+ {[%emt 0:00:36]} Qxf6 {[%emt 0:01:08]} 30. Qxf6 {[%emt 0:00:05]} Bxf3 {[%emt 0:00:25]} 31. gxf3 {[%emt 0:00:12]} Rfb8 {[%emt 0:01:07]} 32. Rg1+ {[%emt 0:00:12]} Kf8 {[%emt 0:00:12]} 33. Qd6+ {[%emt 0:00:06]} Ke8 {[%emt 0:00:11]} 34. Rg8# {[%emt 0:00:05]} 1-0

[Event "EYCC Girls U16 2021"]
[Site "Tornelo"]
[Date "2021.10.15"]
[Round "2.6"]
[White "Carevic, Milica"]
[Black "Perez Garcia, Jimena"]
[Result "1-0"]
[ECO "E67"]
[WhiteElo "1675"]
[BlackElo "1914"]
[Annotator "ChessBase"]
[PlyCount "115"]
[EventDate "2021.10.15"]
[EventType "swiss"]
[EventCountry "NET"]
[SourceTitle "playchess.com"]
[Source "ChessBase"]
[SourceQuality "1"]
[TimeControl "5400+30"]

1. d4 {[%emt 0:00:30]} Nf6 {[%emt 0:00:40]} 2. c4 {[%emt 0:00:28]} g6 {[%emt 0:00:09]} 3. g3 {[%emt 0:00:56]} Bg7 {[%emt 0:00:20]} 4. Nf3 {[%emt 0:00:19]} O-O {[%emt 0:00:22]} 5. Bg2 {[%emt 0:00:42]} d6 {[%emt 0:00:22]} 6. O-O {[%emt 0:00:08]} Nbd7 {[%emt 0:00:36]} 7. Nc3 {[%emt 0:01:58]} e5 {[%emt 0:00:59]} 8. d5 {[%emt 0:03:13]} a5 {[%emt 0:04:16]} 9. e4 {[%emt 0:04:31]} Nc5 {[%emt 0:02:46]} 10. Ne1 {[%emt 0:01:01]} Nfd7 {[%emt 0:10:29]} 11. Be3 {[%emt 0:06:48]} Nb6 {[%emt 0:03:23]} 12. b3 {[%emt 0:05:16]} f5 {[%emt 0:08:30]} 13. exf5 {[%emt 0:07:05]} gxf5 {[%emt 0:01:48]} 14. Bxc5 {[%emt 0:07:37]} dxc5 {[%emt 0:00:48]} 15. Qd2 {[%emt 0:05:46]} e4 {[%emt 0:13:43]} 16. Rd1 {[%emt 0:16:12]} Bd7 {[%emt 0:04:17]} 17. Nc2 {[%emt 0:09:59]} a4 {[%emt 0:12:37]} 18. Rb1 {[%emt 0:09:00]} Qf6 {[%emt 0:04:44]} 19. Ne2 {[%emt 0:05:49]} axb3 {[%emt 0:01:34]} 20. axb3 {[%emt 0:00:05]} Ra2 {[%emt 0:00:22]} 21. Nc1 {[%emt 0:04:01]} Bh6 {[%emt 0:04:51]} 22. Qd1 {[%emt 0:02:31]} Rb2 {[%emt 0:01:13]} 23. Rxb2 {[%emt 0:03:50]} Qxb2 {[%emt 0:00:14]} 24. Ne3 {[%emt 0:00:12]} Qd4 {[%emt 0:08:21]} 25. Ne2 {[%emt 0:01:35]} Qe5 {[%emt 0:05:29]} 26. Qa1 {[%emt 0:00:55]} Qe7 {[%emt 0:04:08]} 27. Rb1 {[%emt 0:01:32]} f4 {[%emt 0:02:11]} 28. Nxf4 {[%emt 0:00:16]} Bxf4 {[%emt 0:00:13]} 29. gxf4 {[%emt 0:00:02]} Rxf4 {[%emt 0:00:10]} 30. Qb2 {[%emt 0:00:33]} Qg5 {[%emt 0:00:55]} 31. Nf1 {[%emt 0:00:50]} h5 {[%emt 0:01:31]} 32. Qd2 {[%emt 0:01:10]} Bh3 {[%emt 0:00:41]} 33. Ng3 {[%emt 0:00:59]} Bxg2 {[%emt 0:00:21]} 34. Kxg2 {[%emt 0:00:03]} h4 {[%emt 0:00:25]} 35. Rh1 {[%emt 0:00:26]} Qg4 {[%emt 0:01:38]} 36. Qe3 {[%emt 0:01:05]} hxg3 {[%emt 0:01:23]} 37. hxg3 {[%emt 0:00:26]} Qf3+ {[%emt 0:00:16]} 38. Qxf3 {[%emt 0:00:05]} Rxf3 {[%emt 0:00:11]} 39. Rb1 {[%emt 0:00:04]} Rc3 {[%emt 0:00:30]} 40. Re1 {[%emt 0:00:30]} Rxb3 {[%emt 0:00:15]} 41. Rxe4 {[%emt 0:00:03]} Kf7 {[%emt 0:01:34]} 42. Rh4 {[%emt 0:00:34]} Ke7 {[%emt 0:00:30]} 43. Rh7+ {[%emt 0:00:07]} Kd6 {[%emt 0:00:09]} 44. g4 {[%emt 0:01:00]} Nxc4 {[%emt 0:00:22]} 45. g5 {[%emt 0:00:05]} Ne5 {[%emt 0:00:49]} 46. f4 {[%emt 0:00:03]} Rb2+ {[%emt 0:01:15]} 47. Kg3 {[%emt 0:00:27]} Rb3+ {[%emt 0:00:09]} 48. Kg2 {[%emt 0:00:21]} Ng4 {[%emt 0:00:58]} 49. g6 {[%emt 0:00:41]} Nf6 {[%emt 0:00:30]} 50. g7 {[%emt 0:00:33]} Kxd5 {[%emt 0:00:50]} 51. Rh6 {[%emt 0:00:47]} Ng8 {[%emt 0:00:11]} 52. Rh8 {[%emt 0:00:04]} Nf6 {[%emt 0:00:26]} 53. Rh6 {[%emt 0:00:05]} Ng8 {[%emt 0:00:22]} 54. Rh8 {[%emt 0:00:04]} Rb2+ {[%emt 0:01:09]} 55. Kf3 {[%emt 0:00:45]} Rb3+ {[%emt 0:00:26]} 56. Kg4 {[%emt 0:00:08]} Nf6+ {[%emt 0:00:10]} 57. Kf5 {[%emt 0:00:04]} Rb6 {[%emt 0:00:14]} 58. Rf8 {[%emt 0:01:00]} 1-0

[Event "EYCC Girls U16 2021"]
[Site "Tornelo"]
[Date "2021.10.15"]
[Round "2.7"]
[White "Sulyok, Eszter"]
[Black "Cherepanova, Evita"]
[Result "1-0"]
[ECO "A49"]
[WhiteElo "1913"]
[BlackElo "1857"]
[Annotator "NA"]
[PlyCount "61"]
[EventDate "2021.10.15"]
[EventType "swiss"]
[EventCountry "NET"]
[SourceTitle "playchess.com"]
[Source "ChessBase"]
[SourceQuality "1"]
[TimeControl "5400+30"]

1. Nf3 {[%emt 0:00:30]} Nf6 {[%emt 0:00:35]} 2. g3 {[%emt 0:00:08]} g6 {[%emt 0:00:04]} 3. d4 {[%emt 0:00:08]} Bg7 {[%emt 0:00:05]} 4. Bg2 {[%emt 0:00:03]} O-O {[%emt 0:00:04]} 5. O-O {[%emt 0:00:03]} d6 {[%emt 0:00:06]} 6. a4 {[%emt 0:00:04]} a5 {[%emt 0:00:13]} 7. Nc3 {[%emt 0:00:33]} Nc6 {[%emt 0:02:01]} 8. Re1 {[%emt 0:04:56]} Nd7 {[%emt 0:03:53]} 9. e4 {[%emt 0:00:32]} e5 {[%emt 0:00:33]} 10. Be3 {[%emt 0:00:38]} f5 {[%emt 0:03:56]} 11. exf5 {[%emt 0:20:31]} gxf5 {[%emt 0:00:09]} 12. dxe5 {[%emt 0:00:04]} Ndxe5 {[%emt 0:02:14]} 13. Ng5 {[%emt 0:01:12]} h6 {[%emt 0:09:28]} 14. Nh3 {[%emt 0:20:11]} Ng4 {[%emt 0:15:44]} 15. Nf4 {[%emt 0:01:39]} Nce5 {[%emt 0:12:43]} 16. h3 {[%emt 0:07:31]} Nxe3 {[%emt 0:02:18]} 17. Rxe3 {[%emt 0:00:06]} c6 {[%emt 0:01:04]} 18. Nh5 {[%emt 0:01:24]} Bh8 {[%emt 0:00:37]} 19. Ne2 {[%emt 0:01:58]} Kh7 {[%emt 0:06:35]} 20. b3 {[%emt 0:02:27]} d5 {[%emt 0:10:16]} 21. Rc1 {[%emt 0:02:22]} Bd7 {[%emt 0:05:25]} 22. c3 {[%emt 0:04:17]} Qc7 {[%emt 0:02:26]} 23. Qc2 {[%emt 0:00:49]} Nf7 {[%emt 0:02:44]} 24. Nd4 {[%emt 0:01:40]} Nd6 {[%emt 0:01:20]} 25. Re7+ {[%emt 0:00:38]} Kg8 {[%emt 0:04:11]} 26. Ne6 {[%emt 0:00:52]} Qc8 {[%emt 0:00:29]} 27. Nxf8 {[%emt 0:00:10]} Kxf8 {[%emt 0:00:03]} 28. Rh7 {[%emt 0:04:17]} Nf7 {[%emt 0:02:33]} 29. Qd2 {[%emt 0:06:05]} Kg8 {[%emt 0:00:07]} 30. Rxh8+ {[%emt 0:00:14]} Kxh8 {[%emt 0:00:11]} 31. Qd4+ {[%emt 0:00:06]} 1-0

[Event "EYCC Girls U16 2021"]
[Site "Tornelo"]
[Date "2021.10.15"]
[Round "2.8"]
[White "Tzakosta, Konstantina"]
[Black "Follana Albelda, Lucia"]
[Result "0-1"]
[ECO "B22"]
[WhiteElo "1089"]
[BlackElo "1904"]
[Annotator "NA"]
[PlyCount "94"]
[EventDate "2021.10.15"]
[EventType "swiss"]
[EventCountry "NET"]
[SourceTitle "playchess.com"]
[Source "ChessBase"]
[SourceQuality "1"]
[TimeControl "5400+30"]

1. e4 {[%emt 0:00:30]} c5 {[%emt 0:00:39]} 2. c3 {[%emt 0:00:10]} Nf6 {[%emt 0:00:10]} 3. e5 {[%emt 0:00:08]} Nd5 {[%emt 0:00:08]} 4. d4 {[%emt 0:00:06]} cxd4 {[%emt 0:00:12]} 5. cxd4 {[%emt 0:00:13]} d6 {[%emt 0:01:10]} 6. Nf3 {[%emt 0:01:04]} Nc6 {[%emt 0:00:18]} 7. Bc4 {[%emt 0:00:56]} Nb6 {[%emt 0:01:12]} 8. Bb5 {[%emt 0:01:18]} dxe5 {[%emt 0:00:50]} 9. Bxc6+ {[%emt 0:01:47]} bxc6 {[%emt 0:01:13]} 10. Nxe5 {[%emt 0:00:45]} Bb7 {[%emt 0:11:47]} 11. Qf3 {[%emt 0:08:55]} Qd5 {[%emt 0:02:01]} 12. Nc3 {[%emt 0:04:31]} Qxf3 {[%emt 0:01:56]} 13. Nxf3 {[%emt 0:00:16]} g6 {[%emt 0:04:10]} 14. Be3 {[%emt 0:01:35]} Bg7 {[%emt 0:01:57]} 15. O-O {[%emt 0:02:23]} O-O {[%emt 0:11:19]} 16. Rac1 {[%emt 0:04:51]} Rfe8 {[%emt 0:06:06]} 17. Ne4 {[%emt 0:04:09]} Rad8 {[%emt 0:08:38]} 18. Ne5 {[%emt 0:05:41]} Nd5 {[%emt 0:12:09]} 19. Nc5 {[%emt 0:12:18]} Nxe3 {[%emt 0:06:05]} 20. fxe3 {[%emt 0:06:08]} Bxe5 {[%emt 0:02:10]} 21. Nxb7 {[%emt 0:00:38]} Rb8 {[%emt 0:00:13]} 22. Na5 {[%emt 0:02:20]} Bd6 {[%emt 0:02:06]} 23. Nxc6 {[%emt 0:01:59]} Rxb2 {[%emt 0:00:19]} 24. Nxa7 {[%emt 0:00:21]} Rxa2 {[%emt 0:03:43]} 25. Nb5 {[%emt 0:01:44]} Bb8 {[%emt 0:04:38]} 26. Rf3 {[%emt 0:03:03]} Rb2 {[%emt 0:02:04]} 27. Nc3 {[%emt 0:02:13]} Bd6 {[%emt 0:02:23]} 28. Ne4 {[%emt 0:04:13]} Bb4 {[%emt 0:04:31]} 29. Rcf1 {[%emt 0:02:49]} f6 {[%emt 0:05:52]} 30. R3f2 {[%emt 0:00:55]} Rb3 {[%emt 0:00:19]} 31. Re2 {[%emt 0:00:50]} Ra8 {[%emt 0:00:27]} 32. Rc1 {[%emt 0:02:07]} Raa3 {[%emt 0:02:59]} 33. Kf2 {[%emt 0:02:14]} Ra5 {[%emt 0:01:20]} 34. Nc5 {[%emt 0:03:15]} Rba3 {[%emt 0:01:40]} 35. Rc4 {[%emt 0:02:04]} Bc3 {[%emt 0:00:33]} 36. Ne4 {[%emt 0:01:08]} Ba1 {[%emt 0:00:11]} 37. Rc7 {[%emt 0:01:00]} Rf5+ {[%emt 0:00:29]} 38. Kg3 {[%emt 0:00:26]} Bxd4 {[%emt 0:00:22]} 39. Rxe7 {[%emt 0:01:39]} Be5+ {[%emt 0:00:50]} 40. Kg4 {[%emt 0:01:09]} Ra4 {[%emt 0:00:08]} 41. h4 {[%emt 0:01:30]} Rxe4+ {[%emt 0:00:09]} 42. Kh3 {[%emt 0:00:09]} Rf1 {[%emt 0:00:16]} 43. g3 {[%emt 0:01:00]} Rf3 {[%emt 0:00:26]} 44. Rg2 {[%emt 0:00:44]} Rexe3 {[%emt 0:00:11]} 45. Kh2 {[%emt 0:00:47]} Bxg3+ {[%emt 0:00:34]} 46. Rxg3 {[%emt 0:00:08]} Rxg3 {[%emt 0:00:15]} 47. Rxe3 {[%emt 0:00:05]} Rxe3 {[%emt 0:00:07]} 0-1

[Event "EYCC Girls U16 2021"]
[Site "Tornelo"]
[Date "2021.10.15"]
[Round "2.9"]
[White "Naymanova, Patricie"]
[Black "Kara, Gulce Nehir"]
[Result "0-1"]
[ECO "D30"]
[WhiteElo "1894"]
[BlackElo "1766"]
[Annotator "NA"]
[PlyCount "72"]
[EventDate "2021.10.15"]
[EventType "swiss"]
[EventCountry "NET"]
[SourceTitle "playchess.com"]
[Source "ChessBase"]
[SourceQuality "1"]
[TimeControl "5400+30"]

1. d4 {[%emt 0:00:30]} c5 {[%emt 0:02:08]} 2. dxc5 {[%emt 0:02:19]} e6 {[%emt 0:00:13]} 3. a3 {[%emt 0:00:25]} Bxc5 {[%emt 0:02:25]} 4. c4 {[%emt 0:00:13]} Nf6 {[%emt 0:04:45]} 5. Nf3 {[%emt 0:02:13]} O-O {[%emt 0:06:31]} 6. b4 {[%emt 0:02:02]} Be7 {[%emt 0:02:46]} 7. Bb2 {[%emt 0:00:17]} d5 {[%emt 0:01:56]} 8. e3 {[%emt 0:00:13]} b6 {[%emt 0:00:43]} 9. Nbd2 {[%emt 0:00:59]} Bb7 {[%emt 0:03:43]} 10. Be2 {[%emt 0:01:45]} Nbd7 {[%emt 0:02:16]} 11. O-O {[%emt 0:00:25]} Ne4 {[%emt 0:01:57]} 12. Qb3 {[%emt 0:02:32]} Nxd2 {[%emt 0:02:13]} 13. Nxd2 {[%emt 0:00:05]} Bf6 {[%emt 0:00:11]} 14. Rfd1 {[%emt 0:01:38]} Bxb2 {[%emt 0:04:01]} 15. Qxb2 {[%emt 0:01:57]} dxc4 {[%emt 0:03:29]} 16. Nxc4 {[%emt 0:00:47]} Qg5 {[%emt 0:00:35]} 17. f3 {[%emt 0:14:43]} Bd5 {[%emt 0:03:15]} 18. Qd4 {[%emt 0:06:41]} Bxc4 {[%emt 0:10:01]} 19. f4 {[%emt 0:05:14]} Qe7 {[%emt 0:01:07]} 20. Bxc4 {[%emt 0:00:24]} Rad8 {[%emt 0:01:21]} 21. e4 {[%emt 0:07:46]} Nf6 {[%emt 0:10:32]} 22. Qe3 {[%emt 0:00:09]} e5 {[%emt 0:00:15]} 23. Bd5 {[%emt 0:02:52]} Qc7 {[%emt 0:08:28]} 24. f5 {[%emt 0:03:11]} Rd6 {[%emt 0:03:01]} 25. Rd3 {[%emt 0:23:56]} Rfd8 {[%emt 0:02:24]} 26. Rad1 {[%emt 0:00:36]} Kf8 {[%emt 0:09:02]} 27. g4 {[%emt 0:03:05]} Nxd5 {[%emt 0:02:23]} 28. exd5 {[%emt 0:00:05]} Qc4 {[%emt 0:00:34]} 29. Qxe5 {[%emt 0:00:39]} Qxg4+ {[%emt 0:00:05]} 30. Kh1 {[%emt 0:01:26]} f6 {[%emt 0:00:47]} 31. Qc3 {[%emt 0:02:24]} Qxf5 {[%emt 0:00:33]} 32. Qc4 {[%emt 0:01:28]} Rc8 {[%emt 0:03:33]} 33. Qb3 {[%emt 0:00:08]} Qe4+ {[%emt 0:02:24]} 34. Kg1 {[%emt 0:00:04]} f5 {[%emt 0:02:53]} 35. Rd4 {[%emt 0:05:58]} Rg6+ {[%emt 0:00:11]} 36. Kf2 {[%emt 0:00:17]} Rg2+ {[%emt 0:00:07]} 0-1

[Event "EYCC Girls U16 2021"]
[Site "Tornelo"]
[Date "2021.10.15"]
[Round "2.10"]
[White "Tsotsonava, Elene"]
[Black "Kaliontzaki, Argyro Evanthia"]
[Result "1-0"]
[ECO "B35"]
[WhiteElo "1887"]
[BlackElo "1282"]
[Annotator "NA"]
[PlyCount "53"]
[EventDate "2021.10.15"]
[EventType "swiss"]
[EventCountry "NET"]
[SourceTitle "playchess.com"]
[Source "ChessBase"]
[SourceQuality "1"]
[TimeControl "5400+30"]

1. e4 {[%emt 0:00:30]} c5 {[%emt 0:00:37]} 2. Nf3 {[%emt 0:00:06]} Nc6 {[%emt 0:00:04]} 3. d4 {[%emt 0:00:07]} cxd4 {[%emt 0:00:04]} 4. Nxd4 {[%emt 0:00:07]} g6 {[%emt 0:00:05]} 5. Nc3 {[%emt 0:00:07]} Bg7 $11 {[%emt 0:00:12]} 6. Be3 {[%emt 0:00:07]} Nf6 {[%emt 0:00:06]} 7. Bc4 {[%emt 0:00:08]} Qa5 {[%emt 0:00:06]} 8. O-O {[%emt 0:08:18]} O-O {[%emt 0:00:14]} 9. Nb3 {[%emt 0:08:45]} Qh5 {[%emt 0:10:21]} 10. Be2 {[%emt 0:01:22]} Qe5 {[%emt 0:02:35]} 11. f4 {[%emt 0:03:13]} Qb8 {[%emt 0:03:10]} 12. e5 {[%emt 0:06:09]} Ne8 {[%emt 0:02:32]} 13. Nd5 {[%emt 0:08:51]} Nc7 {[%emt 0:13:58]} 14. Bc5 {[%emt 0:05:43]} Nxd5 {[%emt 0:03:18]} 15. Qxd5 {[%emt 0:00:08]} b6 {[%emt 0:04:15]} 16. Ba3 {[%emt 0:01:00]} a6 {[%emt 0:08:34]} 17. Rad1 {[%emt 0:04:05]} Ra7 {[%emt 0:06:54]} 18. h4 {[%emt 0:07:11]} Rc7 {[%emt 0:06:00]} 19. h5 {[%emt 0:07:14]} Bb7 {[%emt 0:04:32]} 20. Qd2 {[%emt 0:02:15]} f6 {[%emt 0:07:48]} 21. hxg6 {[%emt 0:03:28]} hxg6 {[%emt 0:00:20]} 22. Bc4+ {[%emt 0:05:03]} Kh7 {[%emt 0:06:41]} 23. Rf3 {[%emt 0:01:15]} Nxe5 {[%emt 0:04:28]} 24. Rh3+ {[%emt 0:00:19]} Bh6 {[%emt 0:00:22]} 25. fxe5 {[%emt 0:00:13]} g5 {[%emt 0:01:06]} 26. Bd3+ {[%emt 0:00:19]} Kg7 {[%emt 0:00:42]} 27. Bxe7 {[%emt 0:00:18]} 1-0